Cogmind - Beta 13 @@@ ROGUE MODE // 2024.06.09 @ 21:29:18 Player: Waste Result: Destroyed by DAS Turret with DAS Cannon Performance ------------- Evolutions (1) 500 Regions Visited (5) 1000 Robots Destroyed (76) 380 Value Destroyed (1327) 1327 Prototype IDs (33) 660 Alien Tech Used (0) 0 Bonus (328) 328 TOTAL SCORE: 4195 Bonus ------- High Alert Combat Kills 21 Follower Combat Kills 7 Aligned with FarCom 300 Cogmind --------- Core Integrity 0/400 Matter 102/300 Energy 250/250 System Corruption 0% Temperature Cool (0) Movement Treading (320) Ox2 Location -9/Exiles Parts ------- > --- POWER (1) -------- Ion Engine > --- PROPULSION (3) --- Light Treads > --- UTILITY (2) ------ High-capacity Storage Unit > --- WEAPON (3) ------- Mini Grenade Launcher > --- INVENTORY (20) --- Ion Engine Hardened Light Armor Plating Hardened Light Armor Plating Heavy Assault Rifle Heavy Assault Rifle Autogun Improved Assault Rifle Improved Assault Rifle Improved Assault Rifle Improved Assault Rifle 8R-AWN's Boregun Rocket Launcher Peak State ------------ > --- POWER ------------ Ion Engine > --- PROPULSION ------- Light Treads Light Treads > --- UTILITY ---------- High-capacity Storage Unit Cloak of Protection > --- WEAPON ----------- Heavy Assault Rifle Autogun Improved Assault Rifle > --- INVENTORY -------- Ion Engine Hardened Light Armor Plating Hardened Light Armor Plating Heavy Assault Rifle Heavy Assault Rifle Autogun Improved Assault Rifle Improved Assault Rifle Improved Assault Rifle Rocket Launcher Mini Grenade Launcher [Rating: 21] Favorites ----------- Power Ion Engine Engine Ion Engine Propulsion Light Treads Treads Light Treads Leg Aluminum Leg Wheel Wheel Utility High-capacity Storage Unit Device Cloak of Protection Storage High-capacity Storage Unit Protection Hardened Light Armor Plating Weapon Heavy Assault Rifle Ballistic Gun Heavy Assault Rifle Launcher Mini Grenade Launcher Build | -11 -10 -10 -9 -9 -9 ------- Run | Yrd Mat Min Mat Min Exi Slots Evolved 2 | . . . 2 . . Power . | . . . . . . Propulsion 1 | . . . 1 . . Utility . | . . . . . . Weapon 1 | . . . 1 . . Parts Attached 48 | . 9 3 17 2 17 Power 5 | . 1 1 2 1 . Engine 5 | . 1 1 2 1 . Core . | . . . . . . Reactor . | . . . . . . Propulsion 18 | . 3 2 10 . 3 Treads 11 | . . . 8 . 3 Leg 6 | . 3 2 1 . . Wheel 1 | . . . 1 . . Hover . | . . . . . . Flight . | . . . . . . Utility 9 | . 3 . . 1 5 Device 3 | . . . . . 3 Storage 2 | . 1 . . . 1 Processor . | . . . . . . Hackware . | . . . . . . Protection 4 | . 2 . . 1 1 Artifact . | . . . . . . Weapon 16 | . 2 . 5 . 9 Energy Gun . | . . . . . . Energy Cannon . | . . . . . . Ballistic Gun 15 | . 2 . 5 . 8 Ballistic Cannon . | . . . . . . Launcher 1 | . . . . . 1 Special Weapon . | . . . . . . Impact Weapon . | . . . . . . Slashing Weapon . | . . . . . . Piercing Weapon . | . . . . . . Special Melee Weapon . | . . . . . . Unidentified Prototypes 5 | . . . 2 . 3 Parts Lost 13 | . . . 2 3 8 Power 1 | . . . . 1 . Propulsion 5 | . . . 1 . 4 Utility 3 | . . . . 1 2 Weapon 4 | . . . 1 1 2 Highest Loss Streak 3 | . . . 1 1 3 To Critical Strikes 3 | . . . . . 3 Average Slot Usage (%) 97 | . 99 100 98 90 92 Engine 12 | . 14 14 10 11 11 Treads 15 | . . . 26 33 30 Leg 14 | . 28 28 4 . . Storage 12 | . 14 14 11 11 11 Protection 12 | . 13 14 11 11 9 Ballistic Gun 28 | . 28 28 32 24 29 Naked Turns . | . . . . . . Heaviest Build 62 | 11 56 56 61 59 62 Greatest Support 60 | 20 20 20 60 60 60 Greatest Overweight (x) 5 | . 2 2 5 . 2 Average Overweight (x) . | . . 2 1 . . Largest Inventory Capacity 20 | . 20 20 20 20 20 Average Capacity 18 | . 12 20 20 20 20 Most Carried 20 | . 20 20 20 20 20 Average Carried 17 | . 11 20 19 18 17 Final Capacity 20 | 8 20 20 20 20 20 Final Carried 20 | 6 20 20 20 18 12 Class Distribution -------------------- 49% | Mutant 20% | Tank 15% | Scavenger-Mutant 12% | Scavenger-Tank Dominant Class ---------------- Mutant | -10/Materials Mutant | -10/Mines Tank | -9/Materials Scavenger-Mutant | -9/Mines Scavenger-Tank | -9/Exiles Resources | -11 -10 -10 -9 -9 -9 ----------- Run | Yrd Mat Min Mat Min Exi Matter Collected 1905 | 200 264 198 759 121 363 Remotely . | . . . . . . Salvage Created 2323 | . 376 131 1510 167 139 Parts 168 | . 30 7 112 16 3 Haulers Intercepted 7 | . 2 . 5 . . Recyclers Shooed 3 | . 1 1 1 . . Parts Field Recycled . | . . . . . . Retrieved Matter . | . . . . . . Parts Self-Destructed . | . . . . . . Prevented . | . . . . . . Kills | -11 -10 -10 -9 -9 -9 ------- Run | Yrd Mat Min Mat Min Exi Combat Hostiles Destroyed 51 | . 9 6 25 7 4 Guns 51 | . 9 6 25 7 4 Classes Destroyed 13 | . 5 2 6 . . Worker 6 | . 1 . 5 . . Builder 7 | . . . 7 . . Tunneler 1 | . . . 1 . . Hauler 7 | . 2 . 5 . . Recycler 2 | . . . 2 . . Operator 1 | . 1 . . . . Watcher 5 | . . . 5 . . Swarmer 24 | . 6 2 11 5 . Grunt 15 | . 3 2 9 1 . Duelist 2 | . . . 1 1 . Sentry 4 | . . . 4 . . Demolisher 1 | . . 1 . . . Assembled 4 | . . 1 . . 3 Best Kill Streak 19 | . 3 2 19 3 3 Combat Bots Only 4 | . 2 2 4 3 3 Max Kills in Single Turn 2 | . 1 1 2 1 1 Gunslinging 1 | . . . 1 . . Exploded . | . . . . . . Melee . | . . . . . . Uniques/NPCs Destroyed 1 | . . . . . 1 8R-AWN (-9/Exiles) Combat | -11 -10 -10 -9 -9 -9 -------- Run | Yrd Mat Min Mat Min Exi Hostile Shots Fired 270 | . 44 34 86 35 71 Missed 53 | . 7 8 21 8 9 Damage Taken 3193 | . 401 402 703 304 1383 Core 520 | . 57 47 85 19 312 Absorbed by Shields . | . . . . . . Core Remaining (%) 79 | 100 . 58 . . . Volleys Fired 203 | . 54 22 71 15 41 Largest 3 | . 2 2 3 3 3 Hottest 69 | . 40 46 69 69 69 Shots Fired 503 | . 108 46 205 37 107 Gun 496 | . 108 46 205 37 100 Cannon . | . . . . . . Launcher 7 | . . . . . 7 Special . | . . . . . . Kinetic 496 | . 108 46 205 37 100 Thermal . | . . . . . . Explosive 7 | . . . . . 7 Electromagnetic . | . . . . . . Robot Hit Streak 16 | . 7 6 16 8 16 Robot Miss Streak 4 | . 4 4 3 3 4 Penetration Max . | . . . . . . Secondary Targets 9 | . 2 . 3 2 2 Max Gunslinging Chain 1 | . 1 . 1 1 1 Shots Hit Robots 317 | . 71 28 118 25 75 Core Hits 132 | . 30 10 63 9 20 Critical Kills 2 | . . . 1 . 1 Critical Parts Destroyed 2 | . 1 . . . 1 Critical Strikes 4 | . 1 . 1 . 2 Destroy 4 | . 1 . 1 . 2 Melee Attacks . | . . . . . . Impact . | . . . . . . Slashing . | . . . . . . Piercing . | . . . . . . Sneak Attacks . | . . . . . . Combat Hostiles . | . . . . . . Follow-up Attacks . | . . . . . . Damage Inflicted 5069 | . 827 454 2195 455 1138 Guns 4656 | . 764 439 1948 384 1121 Cannons . | . . . . . . Explosions 203 | . . . 186 . 17 Melee . | . . . . . . Ramming 210 | . 63 15 61 71 . Kinetic 4656 | . 764 439 1948 384 1121 Thermal 186 | . . . 186 . . Explosive 17 | . . . . . 17 Electromagnetic . | . . . . . . Impact . | . . . . . . Slashing . | . . . . . . Piercing . | . . . . . . Highest Corruption 1 | . 1 1 . . . Average Corruption 1 | . 1 1 . . . Corruption Purged . | . . . . . . Corruption Blocked . | . . . . . . Effects 15 | . 3 12 . . . Message Errors 2 | . . 2 . . . Matter Fused 5 | . . 5 . . . Heat Flow Errors 1 | . . 1 . . . Energy Discharges 1 | . . 1 . . . Data Loss (minor) 4 | . 3 1 . . . Misfires 2 | . . 2 . . . Overload Shots . | . . . . . . Overflow Damage 68 | . . . 68 . . Projectiles . | . . . . . . Explosions 66 | . . . 66 . . Melee 2 | . . . 2 . . Knockbacks 3 | . 1 . 1 1 . Impact 3 | . 1 . 1 1 . Kinetic . | . . . . . . Secondary . | . . . . . . Self-Inflicted Damage 30 | . . . . . 30 Shots 1 | . . . . . 1 Rammed 13 | . . . 7 6 . Targets Rammed 31 | . 13 3 9 6 . Kicked 16 | . 13 3 . . . Crushed 2 | . . . 2 . . Highest Temperature 256 | . 101 144 198 48 256 Average Temperature 61 | . 17 46 52 18 141 Received Heat Transfer 579 | . 186 150 243 . . Effects 6 | . . . . . 6 Energy Bleed 1 | . . . . . 1 Interference 5 | . . . . . 5 Siege Activations . | . . . . . . Robots Corrupted . | . . . . . . Combat Hostiles . | . . . . . . Parts Fried 1 | . . . 1 . . Impact Corruptions 1 | . . . 1 . . Robots Melted . | . . . . . . Combat Hostiles . | . . . . . . Parts Melted . | . . . . . . Heat Transferred 150 | . . . 150 . . Parts Sabotaged . | . . . . . . Parts Stolen . | . . . . . . Parts Stripped . | . . . . . . Power Chain Reactions . | . . . . . . Alert | -11 -10 -10 -9 -9 -9 ------- Run | Yrd Mat Min Mat Min Exi Peak Influence 512 | . 228 95 512 266 . Initial 166 | . . 8 . 166 . Average 114 | . 78 30 236 141 . Maximum Alert Level 2 | . 1 . 2 1 . Low Security (%) 79 | . 97 100 50 59 . Level 1 12 | . 2 . 16 40 . Level 2 7 | . . . 32 . . Level 3 . | . . . . . . Level 4 . | . . . . . . Level 5 . | . . . . . . High Security . | . . . . . . Max Security . | . . . . . . Squads Dispatched 1 | . . . 1 . . Investigation . | . . . . . . Extermination . | . . . . . . Reinforcement 1 | . . . 1 . . Assault . | . . . . . . Garrison . | . . . . . . Intercept . | . . . . . . Searches Triggered . | . . . . . . Construction Impeded . | . . . . . . Haulers Reinforced . | . . . . . . Active Scanning Responses . | . . . . . . Cargo Convoy Interrupts . | . . . . . . Stealth | -11 -10 -10 -9 -9 -9 --------- Run | Yrd Mat Min Mat Min Exi Distress Signals 9 | . 4 3 2 . . Communications Jammed . | . . . . . . Distress Signals . | . . . . . . Times Spotted 97 | . 24 8 33 10 22 Peak Tracking Total 9 | . 4 3 5 4 9 Tactical Retreats 7 | . 1 2 . 1 3 Traps | -11 -10 -10 -9 -9 -9 ------- Run | Yrd Mat Min Mat Min Exi Traps Triggered 2 | . 2 . . . . Indirectly . | . . . . . . Trap Hack Attempts . | . . . . . . Triggered . | . . . . . . Disarmed . | . . . . . . Reprogrammed . | . . . . . . Reused . | . . . . . . Traps Extracted . | . . . . . . Installed . | . . . . . . Triggered . | . . . . . . Machines | -11 -10 -10 -9 -9 -9 ---------- Run | Yrd Mat Min Mat Min Exi Machines Disabled 8 | . 1 1 2 . 4 Max in Single Turn 2 | . 1 1 2 . 1 Machines Repaired . | . . . . . . Machines Dismantled . | . . . . . . Machines Sabotaged . | . . . . . . Overloaded Fab Kills . | . . . . . . Hacking | -11 -10 -10 -9 -9 -9 --------- Run | Yrd Mat Min Mat Min Exi Machines Accessed 9 | . 5 1 1 1 1 Terminals 8 | . 5 1 1 1 . Fabricators . | . . . . . . Repair Stations . | . . . . . . Recycling Units . | . . . . . . Scanalyzers . | . . . . . . Garrison Access . | . . . . . . Total Hacks 29 | . 19 3 4 2 1 Successful 16 | . 12 1 1 1 1 Failed 11 | . 6 1 3 1 . Catastrophic 1 | . . . 1 . . Database Lockouts 2 | . 1 1 . . . Manual 21 | . 10 4 4 2 1 Terminals 28 | . 19 3 4 2 . Fabricators . | . . . . . . Repair Stations . | . . . . . . Recycling Units . | . . . . . . Scanalyzers . | . . . . . . Garrison Access . | . . . . . . Terminal Hacks 14 | . 11 1 . 1 1 Robot Analysis 2 | . 2 . . . . Prototype ID Bank 6 | . 4 1 . 1 . Branch Access Points 1 | . 1 . . . . Hauler Manifests 1 | . 1 . . . . Registered Prototypes 1 | . 1 . . . . Zone Layout 2 | . 2 . . . . Derelict Proto ID Bank 1 | . . . . . 1 Fabricator Hacks . | . . . . . . Repair Station Hacks . | . . . . . . Recycling Unit Hacks . | . . . . . . Scanalyzer . | . . . . . . Garrison Access Hacks . | . . . . . . Unauthorized Hacks 2 | . 1 . 1 . . Terminals 2 | . 1 . 1 . . Botnet 2 | . 1 . 1 . . Fabricators . | . . . . . . Repair Stations . | . . . . . . Recycling Units . | . . . . . . Scanalyzers . | . . . . . . Garrison Access . | . . . . . . Data Cores Recovered 1 | . 1 . . . . Used 1 | . 1 . . . . Hacking Detections 5 | . 3 . 1 1 . Full Trace Events 1 | . . . 1 . . Feedback Events . | . . . . . . Feedback Blocked . | . . . . . . Robot Schematics Acquired . | . . . . . . Robots Built . | . . . . . . Authchips . | . . . . . . Time . | . . . . . . Total Robot Build Rating . | . . . . . . Part Schematics Acquired . | . . . . . . Parts Built . | . . . . . . Authchips . | . . . . . . Time . | . . . . . . Total Part Build Rating . | . . . . . . Parts Repaired . | . . . . . . Time . | . . . . . . Parts Recycled . | . . . . . . Recycled Matter . | . . . . . . Retrieved Matter . | . . . . . . Retrieved Components . | . . . . . . Parts Scanalyzed . | . . . . . . Part Schematics Acquired . | . . . . . . Parts Damaged . | . . . . . . Bothacking | -11 -10 -10 -9 -9 -9 ------------ Run | Yrd Mat Min Mat Min Exi Used RIF Installer . | . . . . . . Robots Hacked . | . . . . . . Non-combat . | . . . . . . Combat . | . . . . . . Robot Hacks Applied . | . . . . . . Relay Couplers Released . | . . . . . . Fabnet Peak Effective % . | . . . . . . Robots Rewired . | . . . . . . Allies Hacked . | . . . . . . Hacks Repelled . | . . . . . . Allies | -11 -10 -10 -9 -9 -9 -------- Run | Yrd Mat Min Mat Min Exi Total Allies 3 | . . . . 3 . Largest Group 3 | . . . . 3 3 Highest-Rated Group 40 | . . . . 40 40 Highest-Rated Ally 16 | . . . . 16 16 Total Orders . | . . . . . . Ally Attacks 13 | . . . . 3 10 Total Damage 151 | . . . . 32 119 Kills 4 | . . . . 1 3 Allies Corrupted . | . . . . . . Allies Melted . | . . . . . . Intel | -11 -10 -10 -9 -9 -9 ------- Run | Yrd Mat Min Mat Min Exi Robot Analysis Total 2 | . 2 . . . . Derelict Logs Recovered 3 | . . 2 . 1 . Drone Launches . | . . . . . . Drone Recoveries . | . . . . . . Exploration | -11 -10 -10 -9 -9 -9 ------------- Run | Yrd Mat Min Mat Min Exi Turns Passed 6140 | . 1393 1621 1306 971 849 Spaces Moved 2752 | 1 736 592 469 565 389 Core . | . . . . . . Treads 1325 | . . . 371 565 389 Legs 1373 | 1 736 592 44 . . Wheels 54 | . . . 54 . . Hover . | . . . . . . Flight . | . . . . . . Fastest Speed 120 | 120 120 260 155 160 160 Average Speed 190 | 120 157 260 210 160 167 Slowest Speed 470 | 120 260 260 470 160 320 Overloaded Moves . | . . . . . . Propulsion Burnouts . | . . . . . . Robots Hopped . | . . . . . . Cave-ins Triggered . | . . . . . . Exploration Rate (%) 68 | 2 96 96 52 99 67 Regions Visited 5 Branch Regions 3 Pre-discovered Areas 3 | . . 2 . 1 . Known Exits Taken 1 | . 1 . . . . Unknown Exits Taken 4 | 1 . 1 1 1 . Scrap Searched 2 | . . 1 . 1 . Spaces Dug . | . . . . . . Terrain Destroyed 49 | . . . 47 . 2 Melee . | . . . . . . Projectile . | . . . . . . AOE 49 | . . . 47 . 2 Terrain Rammed . | . . . . . . Walls Destroyed . | . . . . . . Machines Disabled . | . . . . . . Actions | -11 -10 -10 -9 -9 -9 --------- Run | Yrd Mat Min Mat Min Exi Total 3239 | . 871 629 624 597 518 Wait 139 | . 29 5 44 10 51 Move 2747 | . 735 591 468 564 389 Hop . | . . . . . . Pick Up 30 | . 19 1 3 . 7 Fast Attach 12 | . 2 . 7 . 3 Attach 10 | . . . 2 2 6 Detach 2 | . . . 1 . 1 Swap 26 | . 7 3 8 . 8 Drop 39 | . 12 4 11 . 12 Fire 203 | . 54 22 71 15 41 Melee . | . . . . . . Ram . | . . . . . . Kick 16 | . 13 3 . . . Crush 15 | . . . 9 6 . Escape Stasis . | . . . . . . Rewire . | . . . . . . Trap . | . . . . . . Miscellaneous . | . . . . . . Route ------- -11/Scrapyard -10/Materials (discovered 5 exits: *Mat x3 / *Min x2) -10/Mines (discovered 2 exits: *Mat x2) -9/Materials (discovered 2 exits: [*Mat] / *Min) -9/Mines (discovered 3 exits: [*Mat x2] / *Exi) -9/Exiles History --------- Turn | Location | Event 1 | -11/Scrapyard | Discovered new exit (range 0) 1 | -11/Scrapyard | Entered Materials 111 | -10/Materials | Discovered new exit (range 6) 234 | -10/Materials | Discovered new exit (range 16) 311 | -10/Materials | Build established: Mutant 538 | -10/Materials | Discovered new exit (range 7) 585 | -10/Materials | Central database locked down 687 | -10/Materials | Discovered new exit (range 12) 720 | -10/Materials | Identified exit to Mines 1394 | -10/Materials | Entered Mines 1441 | -10/Mines | Discovered new exit (range 6) 1655 | -10/Mines | Assembled infested the area 1660 | -10/Mines | Assisted by a Guerilla fighting off Assembled 1766 | -10/Mines | Learned location of Zion (-6) 2337 | -10/Mines | Central database locked down 2570 | -10/Mines | Discovered new exit (range 6) 2585 | -10/Mines | Received a Rocket Launcher from a helpful Derelict 2885 | -10/Mines | Learned location of Mines (-9) 3015 | -10/Mines | Entered Materials 3015 | -9/Materials | Evolved 2 slots: Propulsion x1, Weapon x1 3363 | -9/Materials | Discovered new exit (range 16) 3616 | -9/Materials | Build established: Tank 3643 | -9/Materials | Discovered new exit (range 7) 4321 | -9/Materials | Entered Mines 4615 | -9/Mines | Deemed a non-threat by the Exiles lab entrance 4615 | -9/Mines | Discovered new exit (range 5) 4796 | -9/Mines | Discovered new exit (range 8) 4840 | -9/Mines | Build established: Scavenger-Mutant 4840 | -9/Mines | Discovered new exit (range 8) 5007 | -9/Mines | Assisted by bots powering up and referring to "LRC-V3" 5292 | -9/Mines | Entered Exiles 5292 | -9/Exiles | Accompanied by 3 allies 5336 | -9/Exiles | Met 8R-AWN 5363 | -9/Exiles | Met EX-HEX 5410 | -9/Exiles | Met EX-BIN 5429 | -9/Exiles | Aligned with FarCom system 5430 | -9/Exiles | Given EX-Vault access code 5474 | -9/Exiles | Opened EX-Vault 5484 | -9/Exiles | Found Cloak of Protection 5519 | -9/Exiles | Warned to stay clear of 0b10 Research branches 5565 | -9/Exiles | Met EX-DEC 5780 | -9/Exiles | Build established: Scavenger-Tank 5856 | -9/Exiles | Attacked by the Exiles 5912 | -9/Exiles | Lost 3 allies 5974 | -9/Exiles | Core integrity fell below 50% 6022 | -9/Exiles | Lost 3 parts (3n) 6034 | -9/Exiles | Destroyed 8R-AWN 6059 | -9/Exiles | Found Prototype Ballistic Gun 6059 | -9/Exiles | Identified 8R-AWN's Boregun 6126 | -9/Exiles | Core integrity fell below 20% 6141 | -9/Exiles | Destroyed by DAS Turret with DAS Cannon Last Messages --------------- 06030_ HV Slug penetrates Earth. 06034_ Penetrated by HV Slug. 06034_ 8R-AWN destroyed. 06037_ Acquired 14 matter. 06040_ Acquired 112 matter. 06047_ Dropped Cloak of Protection. 06047_ Acquired Prototype Device. 06047_ Identified Exp. Heat Sink. 06049_ Dropped Exp. Heat Sink. 06052_ Acquired Prototype Device. 06052_ Identified Gravity Neutralizer. 06053_ Dropped Gravity Neutralizer. 06059_ Acquired Prototype Ballistic Gun. 06059_ Identified 8R-AWN's Boregun. 06076_ Acquired 36 matter. 06084_ Acquired 1 matter. 06124_ Machine disabled. 06128_ Hvy. Assault Rifle destroyed. 06128_ Lgt. Treads blasted off. 06139_ Autogun destroyed. Map ----- +----------------------------------------------------+ | ??????????????????????????????????????#" ## | | ??????????????????????????????????????#""""""?# | | ??????????????????????????????????????##"###??# | | ??????????????????????????????????????? ??????# | | ??????????????????????????????????????????????# | | ?????????????????????????????????????????????## | | ?????????????#######?????????????????????????#" | | ######???????#!!! "#?????????????????????????#" | | #""#??????# "#?????????????????????????#" | | ??????# "#?????????????????????????#" | | #????## ""#?????????????????????????#" | | #####" ""#????????????? ???????????#" | | ## ""?????????????" ""?????????## | | #" #??????????????" ?????????# | | ??# #?????????????"" ??????????#" | | ?????# ##????????????"" "?????????#" | | ?????### "#???????????? ""?????????#" | | ####### ###???????????" "?????????##" | | !!""" ! * ####????????# #????????##"" | | ! !! ##; [ ;;####???### ###?######"" | | ! % ###; = = % ""#####X# #"###""""""" | | ! !!"#?#; =%[% """""" " "" | | """"" #"" ### # = "" """ " | | ######### # #?#### %% % % " " | | ????????# # #????### % | | ????????# ## ??????### @= | | ????????# #? #???????## | | ????????# #?##????????## | | ????????# #????????????##" | | ????????# #????????????? """""" | | ????????# ?????????????# ######" | | ????????# ?????????????#" ""##????## | | ????????? ?????????????#"" """##??????? | | ????????? ????????????#"" """##???????? | | ????????? ????????????#""" ""#????????? | | ????????? ????????????#"" ########??? | | ????????? ????????????#""" ## #### | | ??????????????????????#"" """ | | ??????????????????????##"" t | | ???????????????????????#"""" | | ???????????????????????## | | ????????????????????????#" " | | ????????????????????????#"""" ""## | | ????????????????????????#"" ""#### | | ?????????????????????????" """"##??# | | ?????????????????????????""" """#??## | | ?????????????????????????# ""##??# | | ?????????????????????????#"" """##???#"[ | | ???????????????????????????""" ##????#" | | ????????????????????????????"""" ##?????#!!" | +----------------------------------------------------+ Best States ------------- Heat Dissipation 28 Energy Generation 12 Energy Capacity 265 Matter Stores 300 Matter Capacity 300 Sight Range 16 Terrain Scan Density 10 Cloak Strength 5 Armor Coverage 150 Evasion (%) 55 Recoil Reduction 3 Item Schematics ----------------- None Robot Schematics ------------------ None Fabricated ------------ Nothing Alien Tech Used ----------------- None Achievements -------------- None Challenges ------------ None Game ------ Seed MyomerPhasingFrame Manual? 0 Play Time 00:24:45 Cumulative 264.9 hours Start 2024.06.09 @ 21:07:11 End 2024.06.09 @ 21:29:18 Sessions 1 Manual Loads 0 Difficulty Rogue Special Mode None Game No. 316 Rogue 316 Adventurer 0 Explorer 0 Win Type - Total 12 Types 6/1/2/1/1/0/0/1/0 Lore% 74 Gallery% 83 Achievement% 72 Wizard Run 0 Options --------- Layout 0 ASCII 0 Keyboard 0 Movement Numpad Keybinds 0 Fullscreen 1 Font 18/SmallcapsGlow Map View 76x50 Zoom Use 0% Tactical HUD 1 Map Filters NONE Filters NONE Steam 1 RUN: 09a01e77-1b7e-46ff-a853-f40bc16b341a